Cogmind - Beta 17.1 @@@ ROGUE MODE // 2026.09.24 @ 12:05:07 Player: Froliks Result: Self-destructed Performance ------------- Evolutions (3) 1500 Regions Visited (5) 1000 Robots Destroyed (98) 490 Value Destroyed (2974) 2974 Prototype IDs (3) 60 Alien Tech Used (0) 0 Bonus (0) 0 TOTAL SCORE: 6024 Bonus ------- None Cogmind --------- Core Integrity 310/700 Matter 110/300 Energy 85/100 System Corruption 1% Temperature Cool (9) Movement Core (1400) Ox27 Location -7/Lower Caves Parts ------- > --- POWER (1) -------- (None) > --- PROPULSION (5) --- (None) > --- UTILITY (4) ------ Huge Storage Unit > --- WEAPON (3) ------- Enhanced Autogun > --- INVENTORY (25) --- Ion Engine Ion Engine Light Ion Engine Light Nuclear Core Light Nuclear Core Light Nuclear Core Light Nuclear Core Light Nuclear Core Heat Sink Improved Heat Sink Advanced Heat Sink Small Storage Unit Improved Signal Interpreter Advanced Targeting Computer Kinecellerator Medium Armor Plating Hardened Medium Armor Plating Improved Medium Armor Plating Shield Generator Heavy Laser High-powered Shotgun Peak State ------------ > --- POWER ------------ Deuterium Engine > --- PROPULSION ------- Light Treads Light Treads Light Treads Light Treads > --- UTILITY ---------- Huge Storage Unit Trap Scanner Improved Sensor Array Hardened Medium Armor Plating > --- WEAPON ----------- High-powered Shotgun High-powered Shotgun Gauss Cannon > --- INVENTORY -------- Ion Engine Ion Engine Light Ion Engine Light Nuclear Core Light Nuclear Core Light Nuclear Core Light Nuclear Core Light Nuclear Core Heat Sink Advanced Heat Sink Small Storage Unit Improved Signal Interpreter Seismic Detector Advanced Targeting Computer Kinecellerator Medium Armor Plating Shield Generator Heavy Laser Enhanced Autogun Missile Launcher [Rating: 32] Favorites ----------- Power Deuterium Engine Engine Deuterium Engine Power Core Light Nuclear Core Propulsion Light Treads Treads Light Treads Leg VSS Leg Utility Seismic Detector Device Seismic Detector Storage Huge Storage Unit Processor Signal Interpreter Protection Hardened Medium Armor Plating Weapon High-powered Shotgun Energy Gun Small Laser Ballistic Gun High-powered Shotgun Ballistic Cannon Gauss Cannon Launcher Missile Launcher Build | -11 -10 -9 -8 -7 -7 ------- Run | Yrd Mat Mat Mat Fac Low Slots Evolved 6 | . . 2 2 2 . Power . | . . . . . . Propulsion 3 | . . 1 1 1 . Utility 2 | . . . 1 1 . Weapon 1 | . . 1 . . . Parts Attached 46 | 7 4 9 16 10 . Power 6 | 1 1 1 2 1 . Engine 4 | 1 . 1 1 1 . Core 2 | . 1 . 1 . . Reactor . | . . . . . . Propulsion 14 | 2 . 4 5 3 . Treads 13 | 2 . 4 5 2 . Leg 1 | . . . . 1 . Wheel . | . . . . . . Hover . | . . . . . . Flight . | . . . . . . Utility 11 | 2 2 . 4 3 . Device 6 | 1 1 . 1 3 . Storage 2 | 1 1 . . . . Processor 1 | . . . 1 . . Hackware . | . . . . . . Protection 2 | . . . 2 . . Artifact . | . . . . . . Weapon 15 | 2 1 4 5 3 . Energy Gun 4 | 1 . 2 1 . . Energy Cannon . | . . . . . . Ballistic Gun 7 | 1 1 2 3 . . Ballistic Cannon 1 | . . . . 1 . Launcher 3 | . . . 1 2 . Special Weapon . | . . . . . . Impact Weapon . | . . . . . . Slashing Weapon . | . . . . . . Piercing Weapon . | . . . . . . Special Melee Weapon . | . . . . . . Unidentified Prototypes 3 | . . 1 1 1 . Parts Lost 33 | . 1 5 11 15 1 Power 3 | . . . 2 1 . Propulsion 14 | . . 3 4 7 . Utility 7 | . 1 . 2 3 1 Weapon 9 | . . 2 3 4 . Highest Loss Streak 8 | . 1 4 7 8 3 To Critical Strikes . | . . . . . . Average Backups 14 | 2 10 15 13 20 22 Power 4 | . 2 3 3 7 8 Propulsion 2 | . 2 5 1 . . Utility 6 | . 4 5 7 9 11 Weapon 1 | . 1 . . 3 3 Tool/Special . | . . . . . . Unused Backups 13 | . . . . . 13 Power 5 | . . . . . 5 Propulsion . | . . . . . . Utility 7 | . . . . . 7 Weapon 1 | . . . . . 1 Tool/Special . | . . . . . . Average Slot Usage (%) 96 | . 99 99 99 86 15 Engine 7 | . 8 9 4 6 . Core 2 | . 5 1 3 . . Treads 31 | . 28 32 35 29 . Device 12 | . 13 11 9 16 7 Storage 10 | . 14 11 9 7 7 Protection 2 | . . . 7 2 . Energy Gun 4 | . 1 4 10 . . Ballistic Gun 22 | . 26 28 16 14 . Ballistic Cannon 1 | . . . . 5 . Peak Build Rating 32 | 7 10 14 25 32 10 Average Rating 16 | 6 8 12 22 28 9 On Entrance 10 | . 7 10 14 25 8 Avg Prop Armor Cover (%) 6 | . . . . 6 . Naked Turns . | . . . . . . Heaviest Build 113 | 15 90 94 108 113 . Greatest Support 100 | 40 40 60 80 100 . Greatest Overweight (x) 28 | . 2 4 1 28 . Average Overweight (x) 1 | . 1 1 1 1 . Largest Inventory Capacity 25 | 8 25 25 25 25 25 Average Capacity 23 | 7 23 25 25 25 25 Most Carried 23 | 4 14 17 18 23 22 Average Carried 14 | 2 10 15 13 20 21 Final Capacity 25 | 8 25 25 25 25 25 Final Carried 22 | 4 14 17 18 22 21 Class Distribution -------------------- 32% | Mutant 27% | Scavenger-Tank 21% | Gunner 10% | Scavenger-Skirmisher 7% | Scavenger-Gunner Dominant Class ---------------- Mutant | -10/Materials Gunner | -9/Materials Scavenger-Tank | -8/Materials Scavenger-Skirmisher | -7/Factory Scavenger-Skirmisher | -7/Lower Caves Resources | -11 -10 -9 -8 -7 -7 ----------- Run | Yrd Mat Mat Mat Fac Low Matter Collected 1885 | 355 262 340 652 276 . Remotely . | . . . . . . Salvage Created 2975 | 277 546 653 1221 278 . Parts 171 | 22 37 43 50 19 . Haulers Intercepted 3 | . 2 . 1 . . Recyclers Shooed 2 | 1 . . 1 . . Parts Field Recycled . | . . . . . . Retrieved Matter . | . . . . . . Parts Self-Destructed . | . . . . . . Prevented . | . . . . . . Parts Restored . | . . . . . . Kills | -11 -10 -9 -8 -7 -7 ------- Run | Yrd Mat Mat Mat Fac Low Combat Hostiles Destroyed 72 | . 14 17 27 14 . Guns 58 | . 14 17 24 3 . Cannons 4 | . . . . 4 . AOE 10 | . . . 3 7 . Classes Destroyed 13 | 2 4 1 1 5 . Worker 2 | . . . 1 1 . Tunneler 9 | 9 . . . . . Hauler 3 | . 2 . 1 . . Recycler 2 | 1 . . 1 . . Mechanic 1 | . . . . 1 . Watcher 9 | . 1 4 3 1 . Swarmer 19 | . 5 7 3 4 . Grunt 35 | . 9 6 20 . . Protector 1 | . . . . 1 . Sentry 8 | . . 4 4 . . Specialist 2 | . . . . 2 . Hunter 4 | . . . . 4 . Programmer 3 | . . . . 3 . Best Kill Streak 9 | 4 3 7 4 9 . Combat Bots Only 7 | . 3 7 4 7 . Max Kills in Single Turn 5 | 1 2 1 2 5 . Gunslinging 1 | . 1 . 1 . . Exploded 4 | . . . 2 4 . Melee . | . . . . . . Uniques/NPCs Destroyed . | . . . . . . Combat | -11 -10 -9 -8 -7 -7 -------- Run | Yrd Mat Mat Mat Fac Low Hostile Shots Fired 433 | . 65 74 122 169 3 Missed 123 | . 23 18 28 54 . Hits 310 | . 42 56 94 115 3 Projectile 310 | . 42 56 94 115 3 Critical Strikes 9 | . 2 1 4 2 . Part Disruptions 1 | . . . . 1 . Damage Taken 4314 | . 447 657 1488 1679 43 Core 775 | . 94 137 154 374 16 Absorbed by Shields . | . . . . . . Core Remaining (%) 74 | 100 62 65 72 . . Volleys Fired 223 | 30 55 46 62 30 . Largest 3 | 2 2 3 3 3 . Hottest 134 | 70 70 93 134 90 . Shots Fired 551 | 49 111 128 181 82 . Gun 519 | 49 111 128 178 53 . Cannon 24 | . . . . 24 . Launcher 8 | . . . 3 5 . Special . | . . . . . . Kinetic 449 | 30 106 117 119 77 . Thermal 94 | 19 5 11 59 . . Explosive 8 | . . . 3 5 . Electromagnetic . | . . . . . . Robot Hit Streak 16 | 7 7 10 16 13 . Robot Miss Streak 6 | 3 4 4 4 6 . Penetration Max . | . . . . . . Secondary Targets 9 | . 3 . 6 . . Max Gunslinging Chain 1 | . 1 . 1 . . Shots Hit Robots 358 | 32 60 86 126 54 . Core Hits 193 | 11 28 35 77 42 . Critical Kills 3 | . 1 . 2 . . Critical Parts Destroyed . | . . . . . . Critical Strikes 7 | 1 3 . 2 1 . Burn 3 | 1 2 . . . . Destroy 3 | . 1 . 2 . . Blast 1 | . . . . 1 . Melee Attacks . | . . . . . . Impact . | . . . . . . Slashing . | . . . . . . Piercing . | . . . . . . Sneak Attacks . | . . . . . . Combat Hostiles . | . . . . . . Follow-up Attacks . | . . . . . . Damage Inflicted 7498 | 398 676 1025 2837 2562 . Guns 5165 | 393 672 1023 2415 662 . Cannons 425 | . . . . 425 . Explosions 1809 | . . . 346 1463 . Melee . | . . . . . . Ramming 99 | 5 4 2 76 12 . Kinetic 4723 | 266 648 943 1779 1087 . Thermal 867 | 127 24 80 636 . . Explosive 1809 | . . . 346 1463 . Electromagnetic . | . . . . . . Impact . | . . . . . . Slashing . | . . . . . . Piercing . | . . . . . . Highest Corruption 2 | . 2 . . 1 1 Average Corruption 1 | . 2 . . 1 1 Corruption Purged . | . . . . . . Corruption Blocked . | . . . . . . Effects 21 | . 19 . . 2 . Message Errors 4 | . 4 . . . . Matter Fused 3 | . 2 . . 1 . Heat Flow Errors 3 | . 3 . . . . Energy Discharges 2 | . 1 . . 1 . Parts Fused 1 | . 1 . . . . Data Loss (minor) 2 | . 2 . . . . Data Loss (major) 2 | . 2 . . . . Misfires 1 | . 1 . . . . Alerts 3 | . 3 . . . . Overload Shots . | . . . . . . Overflow Damage 41 | . . . . 41 . Projectiles . | . . . . . . Explosions 41 | . . . . 41 . Melee . | . . . . . . Knockbacks 6 | . . . . 6 . Impact . | . . . . . . Kinetic 6 | . . . . 6 . Secondary . | . . . . . . Self-Inflicted Damage 172 | . . . . 172 . Shots 4 | . . . . 4 . Rammed 12 | 1 1 1 8 1 . Targets Rammed 14 | 1 2 1 9 1 . Kicked . | . . . . . . Crushed 2 | . 1 . 1 . . Highest Temperature 480 | 72 269 240 480 103 . Average Temperature 77 | 25 49 64 113 21 . Received Heat Transfer 1365 | . 192 285 855 6 27 Effects 4 | . . . 4 . . Shutdowns 1 | . . . 1 . . Energy Bleed 2 | . . . 2 . . Damage (minor) 1 | . . . 1 . . Siege Activations . | . . . . . . Martial Activations . | . . . . . . Shielding Activations . | . . . . . . Robots Disrupted . | . . . . . . Combat Hostiles . | . . . . . . Robots Corrupted . | . . . . . . Combat Hostiles . | . . . . . . Parts Fried . | . . . . . . Impact Corruptions . | . . . . . . Robots Melted . | . . . . . . Combat Hostiles . | . . . . . . Parts Melted 1 | . . . 1 . . Heat Transferred 2300 | 444 222 222 1412 . . Parts Sabotaged . | . . . . . . Parts Stolen . | . . . . . . Parts Stripped . | . . . . . . Power Chain Reactions . | . . . . . . Alert | -11 -10 -9 -8 -7 -7 ------- Run | Yrd Mat Mat Mat Fac Low Maximum Alert Level 1 | . . . 1 . . Low Security (%) 99 | 100 100 100 96 100 . Level 1 . | . . . 3 . . Level 2 . | . . . . . . Level 3 . | . . . . . . Level 4 . | . . . . . . Level 5 . | . . . . . . High Security . | . . . . . . Max Security . | . . . . . . Peak Influence 241 | 10 90 165 241 125 . Initial 106 | . . . 46 106 . Average 33 | . 16 45 52 24 . Influence Increases 2151 | 50 412 541 776 372 . Destroy 0b10 Robot/C 1420 | . 280 340 540 260 . Destroy 0b10 Robot/NC 135 | 50 15 20 30 20 . Destroy Leader 334 | . 66 98 128 42 . Successful Hack 53 | . 6 22 15 10 . Disable Machine 30 | . . . 15 15 . Destroy Structure 44 | . . 1 18 25 . Partial Spotted 15 | . . 15 . . . Lose Combat Pursuer 120 | . 45 45 30 . . Influence Decreases 2108 | 50 412 431 651 522 42 Entered New Map 225 | . . . 64 129 32 Time Decay 1320 | 50 309 285 394 282 . Lost Part 281 | . 10 50 100 111 10 Purge Threat 282 | . 93 96 93 . . Squads Dispatched 13 | . 4 2 4 3 . Investigation 4 | . 2 . 2 . . Extermination 2 | . . . . 2 . Reinforcement 6 | . 2 2 1 1 . Assault . | . . . . . . Garrison 1 | . . . 1 . . Intercept . | . . . . . . Searches Triggered . | . . . . . . Construction Impeded 1 | . . . 1 . . Haulers Reinforced . | . . . . . . Active Scanning Responses . | . . . . . . Cargo Convoy Interrupts 1 | . . . . 1 . Stealth | -11 -10 -9 -8 -7 -7 --------- Run | Yrd Mat Mat Mat Fac Low Distress Signals 8 | . 3 2 2 1 . Communications Jammed . | . . . . . . Distress Signals . | . . . . . . Times Spotted 124 | . 33 28 33 26 4 Peak Tracking Total 11 | . 5 7 4 11 4 Tactical Retreats 6 | . 3 2 1 . . Traps | -11 -10 -9 -8 -7 -7 ------- Run | Yrd Mat Mat Mat Fac Low Traps Triggered 4 | . 2 1 . 1 . Indirectly . | . . . . . . Trap Hack Attempts . | . . . . . . Triggered . | . . . . . . Disarmed . | . . . . . . Reprogrammed . | . . . . . . Reused . | . . . . . . Traps Extracted . | . . . . . . Installed . | . . . . . . Triggered . | . . . . . . Machines | -11 -10 -9 -8 -7 -7 ---------- Run | Yrd Mat Mat Mat Fac Low Machines Disabled 2 | . . . 1 1 . Max in Single Turn 1 | . . . 1 1 . Garrison Access 1 | . . . 1 . . Machines Repaired . | . . . . . . Machines Dismantled . | . . . . . . Machines Sabotaged . | . . . . . . Overloaded Fab Kills . | . . . . . . Hacking | -11 -10 -9 -8 -7 -7 --------- Run | Yrd Mat Mat Mat Fac Low Machines Accessed 20 | . 5 7 5 3 . Terminals 16 | . 5 6 3 2 . Fabricators . | . . . . . . Repair Stations . | . . . . . . Recycling Units . | . . . . . . Scanalyzers 3 | . . 1 1 1 . Garrison Access 1 | . . . 1 . . Total Hacks 58 | . 14 20 18 6 . Successful 31 | . 4 12 10 5 . Failed 25 | . 10 7 7 1 . Catastrophic 6 | . 4 1 1 . . Database Lockouts 2 | . . 1 1 . . Manual 19 | . 10 5 4 . . Terminals 45 | . 14 18 9 4 . Fabricators . | . . . . . . Repair Stations . | . . . . . . Recycling Units . | . . . . . . Scanalyzers 11 | . . 2 7 2 . Garrison Access 2 | . . . 2 . . Terminal Hacks 21 | . 4 10 3 4 . Robot Analysis 5 | . 1 4 . . . Emergency Access Points 1 | . . 1 . . . Alert Level 4 | . 1 1 . 2 . Unreport Threat 6 | . 2 2 2 . . Locate Traps 3 | . . 2 1 . . Maintenance Status 1 | . . . . 1 . Zone Layout 1 | . . . . 1 . Fabricator Hacks . | . . . . . . Repair Station Hacks . | . . . . . . Recycling Unit Hacks . | . . . . . . Scanalyzer 8 | . . 2 5 1 . Insert Component 1 | . . 1 . . . Analyze 1 | . . 1 . . . Retrieve Study 6 | . . . 5 1 . Garrison Access Hacks 1 | . . . 1 . . Seal Access 1 | . . . 1 . . Unauthorized Hacks 1 | . . . 1 . . Terminals 1 | . . . 1 . . Assimilate 1 | . . . 1 . . Fabricators . | . . . . . . Repair Stations . | . . . . . . Recycling Units . | . . . . . . Scanalyzers . | . . . . . . Garrison Access . | . . . . . . Data Cores Recovered . | . . . . . . Used . | . . . . . . Hacking Detections 18 | . 5 7 3 3 . Full Trace Events 5 | . 3 . 2 . . Feedback Events . | . . . . . . Feedback Blocked . | . . . . . . Robot Schematics Acquired . | . . . . . . Robots Built . | . . . . . . Authchips . | . . . . . . Time . | . . . . . . Total Robot Build Rating . | . . . . . . Part Schematics Acquired 1 | . . 1 . . . Parts Built . | . . . . . . Authchips . | . . . . . . Time . | . . . . . . Total Part Build Rating . | . . . . . . Part Studies Acquired 6 | . . . 5 1 . Parts Repaired . | . . . . . . Time . | . . . . . . Parts Recycled . | . . . . . . Recycled Matter . | . . . . . . Retrieved Matter . | . . . . . . Retrieved Components . | . . . . . . Parts Scanalyzed 1 | . . 1 . . . Part Schematics Acquired 1 | . . 1 . . . Parts Damaged . | . . . . . . Bothacking | -11 -10 -9 -8 -7 -7 ------------ Run | Yrd Mat Mat Mat Fac Low Used RIF Installer . | . . . . . . Robots Hacked . | . . . . . . Non-combat . | . . . . . . Combat . | . . . . . . Robot Hacks Applied . | . . . . . . Relay Couplers Released . | . . . . . . Fabnet Peak Effective % . | . . . . . . Robots Rewired . | . . . . . . Allies Hacked . | . . . . . . Hacks Repelled . | . . . . . . Allies | -11 -10 -9 -8 -7 -7 -------- Run | Yrd Mat Mat Mat Fac Low Total Allies 1 | . . . 1 . . Largest Group 1 | . . . 1 1 . Highest-Rated Group 10 | . . . 10 10 . Highest-Rated Ally 10 | . . . 10 10 . Total Orders . | . . . . . . Ally Attacks . | . . . . . . Total Damage . | . . . . . . Kills . | . . . . . . Allies Corrupted . | . . . . . . Allies Melted . | . . . . . . Intel | -11 -10 -9 -8 -7 -7 ------- Run | Yrd Mat Mat Mat Fac Low Active Infowar (turns) 7186 | 224 1807 2032 1672 1450 1 Sensors 584 | . . . . 584 . Traps 1343 | . . . . 1343 . Seismic 6956 | 224 1807 2032 1672 1220 1 Robot Analysis Total 5 | . 1 4 . . . Derelict Logs Recovered . | . . . . . . Drone Launches . | . . . . . . Drone Recoveries . | . . . . . . Exploration | -11 -10 -9 -8 -7 -7 ------------- Run | Yrd Mat Mat Mat Fac Low Turns Passed 7354 | 332 1862 2032 1676 1450 2 Spaces Moved 2374 | 151 545 534 523 621 . Core 9 | 5 . . . 4 . Treads 2357 | 146 545 534 523 609 . Legs 8 | . . . . 8 . Wheels . | . . . . . . Hover . | . . . . . . Flight . | . . . . . . Fastest Speed 50 | 50 160 240 200 200 . Average Speed 237 | 156 300 241 218 214 . Slowest Speed 1450 | 160 320 480 240 1450 . Overloaded Moves . | . . . . . . Propulsion Burnouts . | . . . . . . Robots Hopped . | . . . . . . Potential Cave-ins . | . . . . . . Cave-ins Triggered . | . . . . . . Exploration Rate (%) 28 | 5 69 35 45 17 1 Regions Visited 5 Branch Regions 1 Pre-discovered Areas . | . . . . . . Known Exits Taken . | . . . . . . Unknown Exits Taken 5 | 1 1 1 1 1 . Scrap Searched . | . . . . . . Spaces Dug . | . . . . . . Terrain Destroyed 49 | . . . 14 35 . Melee . | . . . . . . Projectile 4 | . . . . 4 . AOE 45 | . . . 14 31 . Terrain Rammed . | . . . . . . Walls Destroyed . | . . . . . . Machines Disabled . | . . . . . . Actions | -11 -10 -9 -8 -7 -7 --------- Run | Yrd Mat Mat Mat Fac Low Total 3649 | 194 668 1183 917 685 2 Wait 948 | 1 54 581 296 15 1 Move 2369 | 150 544 533 522 620 . Hop . | . . . . . . Pick Up 39 | 5 9 9 9 7 . Fast Attach 16 | 6 . 4 3 3 . Attach 23 | 1 1 6 10 4 1 Detach 1 | . . . . 1 . Swap 15 | . 3 3 5 4 . Drop 1 | . . . 1 . . Fire 223 | 30 55 46 62 30 . Melee . | . . . . . . Ram . | . . . . . . Kick . | . . . . . . Crush 14 | 1 2 1 9 1 . Escape Stasis . | . . . . . . Rewire . | . . . . . . Trap . | . . . . . . Miscellaneous . | . . . . . . Route ------- -11/Scrapyard -10/Materials (discovered 4 exits: *Mat x2 / [*Min x2]) -9/Materials -8/Materials -7/Factory (discovered 2 exits: [*Fac] / [*Low]) -7/Lower Caves History --------- Turn | Location | Event 3 | -11/Scrapyard | Discovered new exit (range 15) 333 | -11/Scrapyard | Entered Materials 333 | -10/Materials | Discovered new exit (range 7) 334 | -10/Materials | Build established: Mutant 1011 | -10/Materials | Discovered new exit (range 16) 1354 | -10/Materials | Discovered new exit (range 15) 2109 | -10/Materials | Discovered new exit (range 16) 2195 | -10/Materials | Entered another Materials area 2195 | -9/Materials | Evolved 2 slots: Propulsion x1, Weapon x1 2212 | -9/Materials | Central database locked down 2511 | -9/Materials | Build established: Gunner 2921 | -9/Materials | Destroyed 7 combat bots 3848 | -9/Materials | Lost 4 parts (2n2w) 4060 | -9/Materials | Discovered new exit (range 16) 4145 | -9/Materials | Build established: Scavenger-Gunner 4227 | -9/Materials | Entered another Materials area 4227 | -8/Materials | Evolved 2 slots: Propulsion x1, Utility x1 4509 | -8/Materials | Lost 7 parts (2p2n1u2w) 4773 | -8/Materials | Build established: Scavenger-Tank 5085 | -8/Materials | Garrison activated, responded to threat 5365 | -8/Materials | Central database locked down 5841 | -8/Materials | Discovered new exit (range 10) 5903 | -8/Materials | Entered Factory 5903 | -7/Factory | Accompanied by 1 ally 5903 | -7/Factory | Evolved 2 slots: Propulsion x1, Utility x1 6313 | -7/Factory | Discovered new exit (range 5) 6316 | -7/Factory | Lost 3 parts (2n1u) 6787 | -7/Factory | Build established: Scavenger-Skirmisher 7210 | -7/Factory | Discovered new exit (range 12) 7235 | -7/Factory | Cargo convoy interrupted 7270 | -7/Factory | Destroyed 7 combat bots 7280 | -7/Factory | Lost 8 parts (1p3n1u3w) 7348 | -7/Factory | Core integrity fell below 50% 7353 | -7/Factory | Entered Lower Caves 7355 | -7/Lower Caves | Self-destructed Last Messages --------------- 07252_ Acquired 22 matter. 07256_ The unstable cave ceiling collapses. 07274_ Slug penetrates Wall. 07281_ Acquired VSS Leg. 07283_ Slug penetrates Wall. 07288_ The unstable cave ceiling collapses. 07289_ Slug penetrates Wall. 07306_ The unstable cave ceiling collapses. 07313_ Slug penetrates Wall. 07329_ Penetrated by Slug. 07335_ Missile Launcher destroyed. 07338_ VSS Leg destroyed. 07340_ U-05 Engineer lays Concrete. 07347_ U-05 Engineer builds a Wall. 07347_ Penetrated by Slug. 07351_ U-05 Engineer lays Concrete. 07353_ Penetrated by Slug. LOCATION=UNKNOWN GOAL=ESCAPE 07354_ Seismic Detector destroyed. Map ----- +----------------------------------------------------+ | ???????????????????????????????????????????? | | ???????????????????????????????????????????? | | ???????????????????????????????????????????? | | ???????????????????????????????????????????? | | ???????????????????????????????????????????? | | ???????????????????????????????????????????? | | ???????????????????????????????????????????? | | ???????????????????????????????????????????? | | ???????????????????????????????????????????? | | ???????????????????????????????????????????? | | ???????????????????????????????????????????? | | ???????????????????????????????????????????? | | ???????????????????????????????????????????? | | ??????????????????????#????????????????????? | | ?????????????????????## ???????????????????? | | ????????????????????## ???????????????????? | | ????????????????????? ???????????????????? | | ?????????????????????g ???????????????????? | | ??????????????????????gg#??????????????????? | | ?????????????????????? g ??????????????????? | | ??????????????????????? ##????????????????? | | ??????????????????????? ##???????????????? | | ???????????????????????# #???????????????? | | ???????????????????????# #???????????????? | | ???????????????????????# #???????????????? | | ???????????????????????# @ #???????????????? | | ???????????????????????# #???????????????? | | ???????????????????????# ##???????????????? | | ???????????????????????####????????????????? | | ???????????????????????????????????????????? | | ???????????????????????????????????????????? | | ???????????????????????????????????????????? | | ???????????????????????????????????????????? | | ???????????????????????????????????????????? | | ???????????????????????????????????????????? | | ???????????????????????????????????????????? | | ???????????????????????????????????????????? | | ???????????????????????????????????????????? | | ???????????????????????????????????????????? | | ???????????????????????????????????????????? | | ???????????????????????????????????????????? | | ???????????????????????????????????????????? | | ???????????????????????????????????????????? | | ???????????????????????????????????????????? | | | | | | | | | | | | | +----------------------------------------------------+ Best States ------------- Heat Dissipation 34 Energy Generation 15 Energy Capacity 275 Matter Stores 300 Matter Capacity 300 Sight Range 16 Robot Scan Range 15 Terrain Scan Density 10 Armor Coverage 225 Evasion (%) 40 Recoil Reduction 5 Item Schematics ----------------- Lgt. Treads | -9/Materials | Scanalyzed Robot Schematics ------------------ None Fabricated ------------ Nothing Repaired ---------- Nothing Studied --------- Hpw. Shotgun | -8/Materials | Hacked Lgt. Treads | -8/Materials | Hacked Lgt. Nuclear Core | -8/Materials | Hacked Ion Engine | -8/Materials | Hacked Lgt. Ion Engine | -8/Materials | Hacked Gauss Cannon | -7/Factory | Hacked Alien Tech Used ----------------- None Achievements -------------- None Challenges ------------ None Game ------ Seed ColdMultireflexRailcannon Manual? 0 Play Time 00:36:31 Cumulative 27.1 hours Start 2026.09.24 @ 11:28:46 End 2026.09.24 @ 12:05:07 Sessions 1 Manual Loads 0 Difficulty Rogue Special Mode None Game No. 31 Rogue 31 Adventurer 0 Explorer 0 Win Type - Total 0 Types 0/0/0/0/0/0/0/0/0/0 Lore% 15 Gallery% 22 Achievement% 19 Wizard Run 0 Options --------- Layout 1 ASCII 0 Keyboard 1 Movement Numpad Keybinds 0 Fullscreen 2 Font 32/Smallcaps Map View 50x35 Zoom Use 0% Tactical HUD 1 Map Filters NONE Filters NONE Steam 1 RUN: ec0f9d8b-bc92-400f-9ced-809503514435